bitfinex/quotes_ETHUSD_20250721
["timestamp","ask_amount","ask_price","bid_price","bid_amount"]
[1753093198552,0.132,3782.8,3782.1,7.92261586]
[1753093198877,0.132,3782.8,3782.2,0.5686]
[1753093199035,0.132,3782.8,3782.6,2.64363951]
[1753093199240,0.132,3782.8,3782.7,0.4366]
[1753093200360,0.132,3782.8,3782.7,3.08021434]
[1753093200542,0.002,3783.4,3782.7,3.08021434]
[1753093200543,4.047,3783.3,3782.8,2.64354446]
[1753093200743,0.132,3783.1,3782.9,0.4366]
[1753093200953,3.19999999,3783.1,3783.0,0.4366]
[1753093201154,3.19999999,3783.1,3783.0,3.0800047]
[1753093201358,3.19999999,3783.1,3783.0,0.4366]
[1753093202139,3.19999999,3783.1,3783.0,3.0800047]
[1753093202350,3.19999999,3783.1,3783.0,0.4366]
[1753093202555,3.19999999,3783.1,3783.0,3.0800047]
[1753093202751,3.06799999,3783.1,3783.0,3.0800047]
[1753093205440,3.83839999,3783.1,3782.4,0.4366]
[1753093205645,0.132,3782.7,3782.4,0.4366]
[1753093205880,4.044,3782.9,3782.0,0.4366]
[1753093206146,3.06799999,3782.8,3782.1,0.02644033]
[1753093206376,3.06799999,3782.8,3782.7,2.64361434]
[1753093206579,3.06799999,3782.8,3782.7,3.08021434]
[1753093210502,0.132,3783.1,3782.9,2.6434255]
[1753093210668,0.132,3783.1,3783.0,2.6434047]
[1753093212186,0.132,3783.1,3783.0,3.0875047]
[1753093213168,0.002,3783.4,3783.3,2.64319509]
[1753093213575,0.002,3783.4,3783.3,3.08729509]
[1753093217974,0.002,3783.4,3783.3,3.11372704]
[1753093218800,0.002,3783.4,3783.3,3.08729509]
[1753093219617,0.002,3783.4,3783.3,2.64319509]
[1753093219895,0.8041,3783.3,3782.9,2.6434125]
[1753093220102,0.8041,3783.3,3783.2,2.64326496]
[1753093220298,0.8041,3783.3,3783.1,2.64332166]
[1753093220666,0.8041,3783.3,3783.0,2.64338588]
[1753093221001,0.8041,3783.3,3783.1,2.64333286]
[1753093221196,0.8041,3783.3,3783.0,2.64338089]
[1753093222402,0.8041,3783.3,3783.1,2.64331895]
[1753093224218,4.8471,3783.3,3783.1,2.64331895]
[1753093224902,4.8471,3783.3,3782.8,2.77553829]
[1753093225079,4.8471,3783.3,3783.0,2.64337619]
[1753093225279,4.8471,3783.3,3783.1,2.64332878]
[1753093227936,4.8471,3783.3,3783.0,2.64338069]
[1753093228138,4.8471,3783.3,3783.0,2.64339694]
[1753093228302,2.64328717,3783.2,3782.6,2.64367309]
[1753093228502,0.132,3782.8,3782.7,2.64361434]
[1753093228712,0.132,3782.8,3782.7,3.08771434]
[1753093229237,0.132,3782.8,3782.7,0.4441]
[1753093229932,0.132,3782.8,3782.7,3.08771434]
[1753093230730,0.132,3782.8,3782.6,2.64365821]
[1753093230912,4.043,3782.7,3782.4,2.64377279]
[1753093231120,4.043,3782.7,3782.1,1.389]
[1753093231121,4.043,3782.7,3782.3,2.64384536]
[1753093231316,0.132,3782.5,3782.2,2.64394678]
[1753093231630,0.132,3782.5,3782.3,2.64387217]
[1753093231829,0.132,3782.5,3781.8,1.3863]
[1753093231830,0.132,3782.5,3782.2,2.6439543]
[1753093232134,0.132,3782.5,3782.0,2.64410364]
[1753093232332,0.132,3782.5,3781.9,2.64415846]
[1753093232800,0.132,3782.5,3782.1,2.64398207]
[1753093233625,0.132,3782.5,3781.5,6.96957952]
[1753093233626,0.132,3782.1,3782.0,2.64409894]
[1753093234015,0.132,3782.1,3781.6,0.4441]
[1753093234201,0.132,3782.1,3781.8,2.64420672]
[1753093234403,0.132,3782.1,3781.6,0.4441]
[1753093234601,0.76,3782.0,3781.5,0.28216889]
[1753093234821,0.132,3781.9,3781.7,2.64427204]
[1753093235008,4.043,3781.8,3781.7,3.08837204]
[1753093238634,4.043,3781.8,3781.5,2.92659955]
[1753093238800,4.043,3781.8,3781.6,2.64438106]
[1753093239218,7.11099999,3781.8,3781.6,2.64438106]
[1753093239739,7.11099999,3781.8,3781.7,2.6443134]
[1753093240645,7.11099999,3781.8,3781.7,3.0884134]
[1753093246553,7.11199999,3781.8,3781.7,3.68991102]
[1753093246930,0.132,3781.9,3781.8,2.64424348]
[1753093247123,3.06799999,3782.2,3781.8,2.64424348]
[1753093247124,3.06799999,3782.2,3782.1,2.64403373]
[1753093247320,3.06799999,3782.2,3782.1,3.09343373]
[1753093247521,0.132,3782.3,3782.2,2.64396383]
[1753093247722,4.175,3782.3,3782.2,3.482115]
[1753093247920,4.175,3782.3,3782.2,3.931515]
[1753093248143,0.132,3782.3,3782.2,3.931515]
[1753093248422,3.06799999,3783.0,3782.9,2.64347458]
[1753093248754,3.19999999,3783.0,3782.9,3.09287458]
[1753093248928,7.24399999,3783.0,3782.9,3.09287458]
[1753093249571,7.11199999,3783.0,3782.9,3.09287458]
[1753093249857,3.06799999,3783.0,3782.9,3.09287458]
[1753093250356,0.002,3783.4,3783.3,2.64319509]
[1753093250648,4.045,3783.4,3783.3,2.64319509]
[1753093251033,0.002,3783.4,3783.3,3.87169509]
[1753093251225,4.045,3783.4,3783.3,3.87169509]
[1753093253427,0.002,3783.4,3783.3,3.87169509]
[1753093254473,0.002,3783.4,3783.3,4.92749109]
[1753093257786,0.002,3783.4,3783.3,8.96949109]
[1753093259138,0.002,3783.4,3783.3,11.96949109]
[1753093260197,0.002,3783.4,3783.3,5.64319509]
[1753093260692,0.002,3783.4,3783.3,2.64319509]
[1753093260898,0.002,3783.4,3783.2,0.132]
[1753093261043,0.8059,3783.4,3782.9,0.4494]
[1753093261240,0.8059,3783.4,3783.2,2.64325516]
[1753093261467,0.8059,3783.4,3783.1,2.64332188]
[1753093261983,0.8059,3783.4,3783.0,2.64338899]
[1753093262152,0.8059,3783.4,3783.1,2.6433288]
[1753093262353,0.8059,3783.4,3783.0,2.64340394]
[1753093262553,0.132,3783.3,3783.0,2.64340394]
[1753093262878,4.042,3783.2,3783.0,2.64340394]
[1753093263089,4.042,3783.2,3782.9,2.64346333]
[1753093263291,4.042,3783.2,3782.6,0.132]
[1753093263578,0.132,3782.8,3782.5,2.64370169]
[1753093263792,4.8695,3782.7,3782.1,2.64396541]
[1753093263953,0.132,3782.5,3782.2,2.64392791]
[1753093264151,0.132,3782.5,3782.0,0.4494]
[1753093264360,2.77576058,3782.5,3781.9,0.132]
[1753093264587,0.132,3782.2,3781.8,2.64421919]
[1753093264777,4.174,3782.2,3781.6,0.5814]
[1753093264976,4.174,3782.2,3782.0,2.6441029]
[1753093265187,4.174,3782.2,3781.6,1.15191689]
[1753093265500,4.174,3782.2,3782.0,2.64403448]
[1753093266779,0.8152,3782.1,3781.5,0.28216889]
[1753093266981,0.8152,3782.1,3781.8,2.64422548]
[1753093266982,0.132,3782.0,3781.8,2.64422548]
[1753093267387,0.132,3782.0,3781.9,2.64417356]
[1753093267964,0.132,3782.0,3781.8,2.64422195]
[1753093268704,0.132,3782.0,3781.9,2.64417356]
[1753093268998,0.132,3782.0,3781.8,2.64422441]
[1753093269600,3.19999999,3782.0,3781.8,2.64422441]
[1753093270114,3.19999999,3782.0,3781.4,0.132]
[1753093270115,3.19999999,3782.0,3781.4,3.132]
[1753093270612,3.19999999,3782.0,3781.7,2.64430422]
[1753093272105,3.19999999,3782.0,3781.6,2.64436168]
[1753093272300,3.19999999,3782.0,3781.7,2.6443119]
[1753093272484,4.042,3781.9,3781.7,2.6443119]
[1753093272687,3.06799999,3781.8,3781.4,2.77651197]
[1753093272890,3.06799999,3781.8,3781.5,2.64445325]
[1753093273091,3.19999999,3781.8,3781.6,2.64437402]
[1753093275318,3.19999999,3781.8,3781.7,2.6443134]
[1753093276015,3.19999999,3781.8,3781.6,0.001]
[1753093276517,3.19999999,3781.8,3781.6,2.64537713]
[1753093276693,3.19999999,3781.8,3781.7,2.6443134]
[1753093277719,3.19999999,3781.8,3781.6,3.11985983]
[1753093278756,3.19999999,3781.8,3781.7,2.6443134]
[1753093284885,7.24199999,3781.8,3781.7,3.1188134]
[1753093285194,7.24199999,3781.8,3781.7,3.77776991]
[1753093285345,7.24199999,3781.8,3781.7,3.1188134]
[1753093285548,3.19999999,3781.8,3781.7,3.1188134]
[1753093285746,7.24199999,3781.8,3781.7,3.1188134]
[1753093286248,7.10999999,3781.8,3781.7,3.1188134]
[1753093286447,3.06799999,3781.8,3781.7,3.1188134]
[1753093286668,7.10999999,3781.8,3781.7,4.39487084]
[1753093287249,4.042,3781.8,3781.7,4.39487084]
[1753093289386,4.042,3781.8,3781.7,2.6443134]
[1753093289678,4.042,3781.8,3781.6,2.64532069]
[1753093289679,0.132,3781.7,3781.6,2.64532069]
[1753093290469,4.174,3781.7,3781.6,3.11982069]
[1753093293201,7.24199999,3781.7,3781.6,3.11982069]
[1753093294861,7.24199999,3781.7,3781.6,2.64532069]
[1753093295172,8.06449999,3781.7,3781.6,0.001]
[1753093295377,8.06449999,3781.7,3781.6,2.64538332]
[1753093295593,8.06449999,3781.7,3781.6,0.001]
[1753093296200,8.06449999,3781.7,3781.6,2.64538332]
[1753093298162,3.19999999,3781.7,3781.6,2.64538332]
[1753093298366,7.24099999,3781.7,3781.6,3.11988332]
[1753093298780,3.19999999,3781.7,3781.6,3.11988332]
[1753093298982,7.24099999,3781.7,3781.6,3.11988332]
[1753093299199,4.173,3781.7,3781.6,3.11988332]
[1753093299386,0.132,3782.0,3781.6,0.4755]
[1753093299586,0.7591,3782.6,3781.8,2.64424348]
[1753093299816,0.7591,3782.9,3782.8,2.64348659]
[1753093299969,0.7591,3783.2,3783.0,2.64335609]
[1753093300175,4.041,3783.1,3783.0,2.64335609]
[1753093301800,0.132,3783.0,3782.9,2.64345024]
[1753093301976,0.132,3783.0,3782.6,2.64368223]
[1753093302171,4.041,3782.9,3781.8,0.4476]
[1753093302399,0.132,3782.4,3782.3,2.64385084]
[1753093302609,4.173,3782.4,3782.3,2.64385084]
[1753093303386,4.173,3782.4,3782.1,2.64401703]
[1753093303586,4.041,3782.4,3782.0,2.64407634]
[1753093303802,0.132,3782.1,3782.0,2.64407634]
[1753093304002,4.173,3782.1,3782.0,2.64407634]
[1753093304417,0.132,3782.1,3782.0,3.88492689]
[1753093304718,4.173,3782.1,3782.0,3.88492689]
[1753093305904,4.173,3782.1,3782.0,2.64407634]
[1753093306105,4.173,3782.1,3782.0,3.09167634]
[1753093308991,4.173,3782.1,3782.0,2.64407634]
[1753093309197,4.041,3782.1,3782.0,3.22367634]
[1753093310290,4.041,3782.1,3782.0,3.09167634]
[1753093310819,4.041,3782.1,3782.0,2.64410364]
[1753093311199,4.7956,3782.1,3782.0,2.64410364]
[1753093312283,4.041,3782.1,3782.0,2.64410364]
[1753093314519,0.132,3782.0,3781.9,2.64415557]
[1753093315086,0.132,3782.0,3781.6,2.64536466]
[1753093315290,0.132,3781.8,3781.6,0.001]
[1753093315618,4.04,3781.7,3781.6,0.001]
[1753093316491,4.04,3781.7,3781.6,2.64536302]
[1753093317300,3.83179999,3782.3,3781.6,3.62459446]
[1753093317301,3.06799999,3782.3,3781.6,3.62459446]
[1753093317626,3.06799999,3782.3,3782.2,2.64396383]
[1753093317801,7.10799999,3782.3,3782.2,2.64396383]
[1753093318614,7.10799999,3782.3,3782.1,2.64400514]
[1753093319121,0.132,3782.1,3782.0,3.09170364]
[1753093320019,0.132,3782.1,3782.0,2.64410364]
[1753093320813,0.132,3782.1,3781.8,2.64422734]
[1753093320814,0.833,3782.0,3781.6,0.001]
[1753093321014,0.132,3781.8,3781.6,2.64537259]
[1753093321603,0.132,3781.8,3781.7,2.6443134]
[1753093321930,0.132,3781.8,3781.7,3.0919134]
[1753093321931,4.172,3781.8,3781.7,3.0919134]
[1753093323543,4.172,3781.8,3781.7,2.6443134]
[1753093323837,4.172,3781.8,3781.6,2.64535858]
[1753093325040,4.8549,3781.8,3781.6,0.001]
[1753093325444,7.92289999,3781.8,3781.6,0.001]
[1753093325644,3.06799999,3781.8,3781.7,3.0919134]
[1753093325799,7.10799999,3781.8,3781.7,3.0919134]
[1753093327454,7.10799999,3781.8,3781.7,3.9125134]
[1753093328437,7.10799999,3781.8,3781.7,3.0919134]
[1753093332957,7.10799999,3781.8,3781.7,2.6443134]
[1753093333158,0.132,3781.7,3781.6,2.64535382]
[1753093333667,0.132,3781.7,3781.6,0.001]
[1753093334060,6.63601339,3781.7,3781.6,0.001]
[1753093334367,10.88591339,3781.7,3781.6,0.001]
[1753093336384,10.67501339,3781.7,3781.6,0.001]
[1753093336976,10.88591339,3781.7,3781.6,0.001]
[1753093337155,8.03069999,3781.7,3781.6,0.001]
[1753093337646,10.67501339,3781.7,3781.6,0.001]
[1753093338036,10.88591339,3781.7,3781.6,0.001]
[1753093339067,13.88591339,3781.7,3781.6,0.001]
[1753093339265,2.64480296,3781.0,3780.9,0.001]
[1753093339469,10.50260295,3781.0,3780.9,0.001]
[1753093339653,10.71350295,3781.0,3780.9,0.001]
[1753093340737,10.50360295,3781.0,3780.9,0.001]
[1753093341062,3.81879999,3781.0,3780.9,0.001]
[1753093341271,7.85879999,3781.0,3780.9,0.001]
[1753093342757,10.50360295,3781.0,3780.9,0.001]
[1753093343160,7.85879999,3781.0,3780.9,0.001]
[1753093343670,10.50360295,3781.0,3780.9,0.001]
[1753093344444,7.85879999,3781.0,3780.9,0.001]
[1753093345037,7.10699999,3781.0,3780.9,0.4646]
[1753093347582,7.10699999,3781.0,3780.9,0.001]
[1753093348499,9.75180295,3781.0,3780.9,0.001]
[1753093349067,10.74780295,3781.0,3780.9,0.001]
[1753093350605,10.53690295,3781.0,3780.9,0.001]
[1753093351117,7.89209999,3781.0,3780.9,0.001]
[1753093351271,7.10699999,3781.0,3780.9,0.001]
[1753093351470,7.10699999,3781.0,3780.9,0.4646]
[1753093352913,7.10699999,3781.0,3780.9,0.001]
[1753093353096,6.68480296,3781.0,3780.9,0.001]
[1753093353406,7.65790296,3781.0,3780.9,0.001]
[1753093353605,7.44700296,3781.0,3780.9,0.001]
[1753093355802,4.8022,3781.0,3780.9,0.001]
[1753093356672,7.44700296,3781.0,3780.9,0.001]
[1753093356871,10.65790296,3781.0,3780.9,0.001]
[1753093357709,10.44700296,3781.0,3780.9,0.001]
[1753093363283,10.65790296,3781.0,3780.9,0.001]
[1753093364786,16.69691228,3781.0,3780.9,0.001]
[1753093365046,17.24691228,3781.0,3780.9,0.001]
[1753093369730,13.20691228,3781.0,3780.9,0.001]
[1753093369889,17.24691228,3781.0,3780.9,0.001]
[1753093370296,27.70691228,3781.0,3780.9,0.001]
[1753093370609,31.74691228,3781.0,3780.9,0.001]
[1753093372117,6.32687291,3780.9,3780.8,1e-08]
[1753093372321,7.34177291,3780.9,3780.8,1e-08]
[1753093372701,21.84177291,3780.9,3780.8,1e-08]
[1753093373035,25.88177291,3780.9,3780.8,1e-08]
[1753093375403,28.66577291,3780.9,3780.8,1e-08]
[1753093379164,2.64536267,3780.2,3780.1,0.001]
[1753093379324,17.07337199,3780.2,3780.1,0.001]
[1753093379525,23.63227199,3780.2,3780.1,0.001]
[1753093379747,38.13227199,3780.2,3780.1,0.001]
[1753093380871,37.92137199,3780.2,3780.1,0.001]
[1753093381055,38.13227199,3780.2,3780.1,0.001]
[1753093381219,5.64543266,3780.1,3780.0,1e-08]
[1753093381419,6.43043266,3780.1,3780.0,1e-08]
[1753093381665,7.19133266,3780.1,3780.0,1e-08]
[1753093381823,51.69133266,3780.1,3780.0,1e-08]
[1753093382140,54.47533266,3780.1,3780.0,1e-08]
[1753093383860,6.19592263,3779.4,3779.1,1e-08]
[1753093384065,17.05993195,3779.4,3779.3,1e-08]
[1753093384268,17.27083195,3779.4,3779.3,1e-08]
[1753093384469,31.77083195,3779.4,3779.3,1e-08]
[1753093384979,27.51993195,3779.4,3779.3,1e-08]
[1753093385172,31.55993195,3779.4,3779.3,1e-08]
[1753093386351,25.52092263,3779.4,3779.3,1e-08]
[1753093386546,24.73592263,3779.4,3779.3,0.46070001]
[1753093386747,24.18592263,3779.4,3779.3,0.46070001]
[1753093387600,20.14592263,3779.4,3779.3,0.46070001]
[1753093387779,14.5,3779.4,3779.3,1.27360001]
[1753093387979,4.04,3779.4,3779.3,1.27360001]
[1753093390790,3.0,3779.5,3779.3,1.27360001]
[1753093390954,4.04,3779.4,3779.3,0.81290001]
[1753093391789,4.04,3779.4,3779.3,1.27360001]
[1753093391963,17.5,3779.4,3779.3,1.27360001]
[1753093392171,21.54,3779.4,3779.3,1.27360001]
[1753093394064,4.04,3779.4,3779.3,4.2794164]
[1753093394268,0.132,3779.4,3779.3,4.2794164]
[1753093394471,4.172,3779.4,3779.3,4.2794164]
[1753093394855,0.132,3779.4,3779.3,4.2794164]
[1753093395062,14.5,3780.1,3779.6,2.64571892]
[1753093395371,4.039,3780.0,3779.7,3.8817997]
[1753093395572,4.039,3780.0,3779.8,0.4668]
[1753093396573,14.5,3780.1,3779.9,0.7891]
[1753093396781,4.039,3780.0,3779.9,0.7891]
[1753093397084,4.039,3780.0,3779.9,3.43467263]
[1753093397390,6.348,3780.2,3780.1,0.7891]
[1753093397554,10.387,3780.2,3780.1,3.90133266]
[1753093397754,10.387,3780.2,3780.1,1.2559]
[1753093398966,6.348,3780.2,3780.1,1.2559]
[1753093399176,10.387,3780.2,3780.1,1.91059774]
[1753093399695,10.387,3780.2,3780.1,4.5560304]
[1753093401074,6.348,3780.2,3780.1,4.5560304]
[1753093401275,10.387,3780.2,3780.1,4.5560304]
[1753093402576,10.387,3780.2,3780.1,1.2559]
[1753093402897,6.348,3780.2,3780.1,1.2559]
[1753093403193,10.387,3780.2,3780.1,1.2559]
[1753093404397,10.386,3780.2,3780.1,1.2559]
[1753093404797,10.386,3780.2,3779.4,0.132]
[1753093404798,0.132,3780.1,3779.6,0.4668]
[1753093405003,4.038,3780.0,3779.6,0.4668]
[1753093405161,0.132,3779.6,3779.5,2.64585262]
[1753093405364,4.17,3779.6,3779.5,2.64585262]
[1753093405775,0.132,3779.6,3779.5,4.23703788]
[1753093406368,4.17,3779.6,3779.5,4.23703788]
[1753093406565,0.132,3779.6,3779.5,4.23703788]
[1753093406770,4.17,3779.6,3779.5,1.2462]
[1753093407899,4.17,3779.6,3779.5,0.4668]
[1753093408102,6.81578262,3779.6,3779.5,0.4668]
[1753093408403,4.17,3779.6,3779.5,0.4668]
[1753093409106,0.132,3779.6,3779.5,0.4668]
[1753093409312,4.17,3779.6,3779.5,0.4668]
[1753093410405,4.17,3779.6,3779.3,1e-08]
[1753093410623,2.64591692,3779.5,3779.3,1e-08]
[1753093410800,2.64561466,3779.9,3779.3,1e-08]
[1753093410991,4.038,3779.8,3779.4,0.8135]
[1753093411511,4.038,3779.8,3779.5,0.4668]
[1753093411814,4.038,3779.8,3779.6,0.4668]
[1753093412108,3.0,3780.0,3779.7,0.4668]
[1753093412279,4.038,3779.9,3779.7,0.4668]
[1753093412473,0.132,3779.7,3779.4,0.8135]
[1753093412675,4.038,3779.6,3779.5,0.4668]
[1753093415920,18.538,3779.6,3779.5,0.4668]
[1753093421325,2.77791425,3779.5,3779.3,1e-08]
[1753093421529,4.038,3779.4,3779.3,1e-08]
[1753093421737,6.68392263,3779.4,3779.3,0.46680001]
[1753093422028,4.038,3779.4,3779.3,0.46680001]
[1753093422535,4.038,3779.4,3779.3,1e-08]
[1753093422708,4.038,3779.4,3779.3,0.43120001]
[1753093423306,6.68392263,3779.4,3779.3,0.43120001]
[1753093423608,6.68392263,3779.4,3779.3,1e-08]
[1753093423803,4.038,3779.4,3779.3,1e-08]
[1753093425994,4.038,3779.4,3779.3,0.43120001]
[1753093426536,18.538,3779.4,3779.3,0.43120001]
[1753093426735,18.538,3779.4,3779.3,1e-08]
[1753093426736,21.18392263,3779.4,3779.3,1e-08]
[1753093426909,21.96282263,3779.4,3779.3,1e-08]
[1753093428009,22.17372263,3779.4,3779.3,1e-08]
[1753093429352,25.17372263,3779.4,3779.3,1e-08]
[1753093429720,10.67372263,3779.4,3779.3,1e-08]
[1753093430044,10.46282263,3779.4,3779.3,1e-08]
[1753093430253,31.22088815,3779.4,3779.3,1e-08]
[1753093430418,31.00998815,3779.4,3779.3,1e-08]
[1753093434838,31.22088815,3779.4,3779.3,1e-08]
[1753093435049,31.00998815,3779.4,3779.3,1e-08]
[1753093435228,2.64633005,3778.9,3778.6,0.4312]
[1753093435436,4.038,3778.8,3778.6,0.4312]
[1753093435644,4.038,3778.8,3778.5,0.001]
[1753093435645,3.06999998,3778.7,3778.5,0.001]
[1753093435846,3.06999998,3778.7,3778.6,1.2372]
[1753093436011,7.10799998,3778.7,3778.6,0.806]
[1753093436211,7.10799998,3778.7,3778.6,1.2372]
[1753093436844,7.10799998,3778.7,3778.6,3.88368282]
[1753093437047,3.06999998,3778.7,3778.6,3.88368282]
[1753093437222,3.20199998,3778.7,3778.6,4.56350419]
[1753093437427,7.23999998,3778.7,3778.6,4.56350419]
[1753093437746,3.20199998,3778.7,3778.6,4.56350419]
[1753093438045,7.23999998,3778.7,3778.6,4.56350419]
[1753093438251,3.20199998,3778.7,3778.6,4.56350419]
[1753093438743,7.23999998,3778.7,3778.6,4.56350419]
[1753093438953,7.23999998,3778.7,3778.6,0.4312]
[1753093441238,21.73999998,3778.7,3778.6,0.4312]
[1753093442245,24.38641276,3778.7,3778.5,0.001]
[1753093442454,21.73999998,3778.7,3778.5,0.001]
[1753093442745,24.38641488,3778.7,3778.5,0.001]
[1753093443259,21.73999998,3778.7,3778.5,0.4322]
[1753093443423,21.73999998,3778.7,3778.6,0.4312]
[1753093444255,24.38643049,3778.7,3778.5,0.001]
[1753093445039,2.64648282,3778.6,3778.5,0.001]
[1753093446024,21.73999998,3778.7,3778.5,0.4322]
[1753093446368,24.3864201,3778.7,3778.5,0.4322]
[1753093446766,2.64648282,3778.6,3778.5,0.001]
[1753093446969,9.7544828,3778.6,3778.5,0.4322]
[1753093447865,7.10799998,3778.6,3778.5,0.4322]
[1753093448158,9.7544828,3778.6,3778.5,0.4322]
[1753093448325,9.7544828,3778.6,3778.5,0.001]
[1753093448520,10.5455828,3778.6,3778.5,0.001]
[1753093449134,7.10799998,3778.6,3778.5,0.001]
[1753093449426,9.7544828,3778.6,3778.5,0.001]
[1753093449647,9.7544828,3778.6,3778.5,0.4322]
[1753093450469,24.2544828,3778.6,3778.5,0.001]
[1753093454372,24.2534828,3778.6,3778.5,0.001]
[1753093454538,24.2534828,3778.6,3778.5,0.4339]
[1753093455350,21.60699998,3778.6,3778.5,0.4339]
[1753093455747,24.2534828,3778.6,3778.5,0.4339]
[1753093456074,3.06999998,3778.6,3778.5,3.08045286]
[1753093456275,7.10699998,3778.6,3778.5,3.73339741]
[1753093457275,7.10699998,3778.6,3778.5,1.08684455]
[1753093457680,7.10699998,3778.6,3778.5,0.4339]
[1753093459650,3.06999998,3778.6,3778.5,3.08045286]
[1753093459874,7.10699998,3778.6,3778.5,3.08045286]
[1753093463588,7.10699998,3778.6,3778.5,0.4339]
[1753093464157,7.10699998,3778.6,3778.5,3.08045286]
[1753093466796,7.10699998,3778.6,3778.5,0.4339]
[1753093468097,7.10699998,3778.6,3778.5,0.001]
[1753093468259,9.7534828,3778.6,3778.5,0.001]
[1753093468459,7.10699998,3778.6,3778.5,0.001]
[1753093469488,21.60699998,3778.6,3778.5,0.001]
[1753093471405,25.0467828,3778.6,3778.5,0.001]
[1753093475101,31.09394832,3778.6,3778.5,0.001]
[1753093476198,31.30484832,3778.6,3778.5,0.001]
[1753093476364,34.30484832,3778.6,3778.5,0.001]
[1753093476968,28.0467828,3778.6,3778.5,0.001]
[1753093477734,21.60599998,3778.6,3778.5,0.001]
[1753093477868,21.60599998,3778.6,3778.5,0.4339]
[1753093478501,9.7524828,3778.6,3778.5,0.001]
[1753093478799,7.10599998,3778.6,3778.5,0.001]
[1753093478970,9.7524828,3778.6,3778.5,0.001]
[1753093479614,13.5567828,3778.6,3778.5,0.001]
[1753093480792,13.7676828,3778.6,3778.5,0.001]
[1753093481873,14.3176828,3778.6,3778.5,1e-08]
[1753093482472,28.8176828,3778.6,3778.5,1e-08]
[1753093485374,24.5707828,3778.6,3778.5,1e-08]
[1753093485579,14.76371835,3778.5,3778.4,0.001]
[1753093485802,14.97461835,3778.5,3778.4,0.001]
[1753093486711,15.76261835,3778.5,3778.4,0.001]
[1753093486909,20.34861835,3778.5,3778.4,0.001]
[1753093487495,20.13771835,3778.5,3778.4,0.001]
[1753093488902,15.55171835,3778.5,3778.4,0.001]
[1753093489521,19.58771835,3778.5,3778.4,0.001]
[1753093489826,15.55171835,3778.5,3778.4,0.001]
[1753093490120,10.10599997,3778.5,3778.4,0.001]
[1753093490331,10.10599997,3778.5,3778.4,0.4532]
[1753093490622,6.06999997,3778.5,3778.4,0.4532]
[1753093490833,3.06999997,3778.5,3778.4,0.4532]
[1753093491133,10.10599997,3778.5,3778.4,0.4532]
[1753093491486,3.06999997,3778.5,3778.4,1.2776]
[1753093491717,7.10599997,3778.5,3778.4,3.9242229]
[1753093491924,7.10599997,3778.5,3778.4,1.2776]
[1753093492188,17.57199997,3779.1,3778.5,2.64654713]
[1753093492497,0.132,3778.6,3778.5,2.64654713]
[1753093492766,4.168,3778.6,3778.5,2.64654713]
[1753093492888,4.168,3778.6,3778.5,3.09874713]
[1753093494810,0.132,3778.6,3778.5,3.09874713]
[1753093495111,4.167,3778.6,3778.5,3.79517821]
[1753093495420,4.167,3778.6,3778.5,3.79518394]
[1753093495624,0.132,3778.6,3778.5,3.79518394]
[1753093495925,4.167,3778.6,3778.5,3.79518394]
[1753093496717,4.167,3778.6,3778.5,3.09875286]
[1753093498844,4.167,3778.6,3778.5,0.4522]
[1753093499544,4.167,3778.6,3778.5,3.09875286]
[1753093499723,4.167,3778.6,3778.5,0.4522]
[1753093499925,4.167,3778.6,3778.5,3.09875286]
[1753093500744,4.167,3778.6,3778.5,0.4522]
[1753093501051,18.667,3778.6,3778.4,0.001]
[1753093501245,18.535,3778.6,3778.4,0.001]
[1753093501651,12.52621835,3778.5,3778.4,0.001]
[1753093501814,16.28711835,3778.5,3778.4,0.001]
[1753093502317,30.78711835,3778.5,3778.4,0.001]
[1753093502520,30.23711835,3778.5,3778.4,0.001]
[1753093502916,30.78711835,3778.5,3778.4,0.001]
[1753093506218,6.39762287,3778.4,3778.3,0.001]
[1753093506418,10.64352287,3778.4,3778.3,0.001]
[1753093506723,13.64352287,3778.4,3778.3,0.001]
[1753093506929,14.42532287,3778.4,3778.3,0.001]
[1753093509749,36.72532287,3778.4,3778.3,0.001]
[1753093514753,36.51442287,3778.4,3778.3,0.001]
[1753093514954,36.72532287,3778.4,3778.3,0.001]
[1753093515160,5.71318336,3777.6,3777.2,0.4315]
[1753093515391,9.74818336,3777.6,3777.2,0.4315]
[1753093515759,24.24818336,3777.6,3777.1,0.001]
[1753093516389,27.24818336,3777.6,3777.1,0.001]
[1753093518069,27.24818336,3777.6,3777.5,0.4325]
[1753093518266,27.24818336,3777.6,3777.5,0.001]
[1753093518471,27.24818336,3777.6,3777.5,0.4325]
[1753093519693,23.21318336,3777.6,3777.5,0.4325]
[1753093520060,27.24818336,3777.6,3777.5,0.4325]
[1753093523988,24.60099997,3777.6,3777.5,0.4325]
[1753093524186,27.24818336,3777.6,3777.5,0.4325]
[1753093525275,27.24818336,3777.6,3777.5,0.001]
[1753093525473,28.05478336,3777.6,3777.5,0.001]
[1753093525865,28.81568336,3777.6,3777.5,0.001]
[1753093526703,28.60478336,3777.6,3777.5,0.001]
[1753093526903,2.64760391,3777.0,3776.9,0.4315]
[1753093527069,2.64767401,3776.9,3776.8,0.001]
[1753093528178,17.14767401,3776.9,3776.8,0.001]
[1753093528578,21.18167401,3776.9,3776.8,0.001]
[1753093530724,27.23567398,3776.9,3776.8,0.001]
[1753093530866,27.78567398,3776.9,3776.8,0.001]
[1753093535687,2.64795445,3776.5,3776.2,0.4315]
[1753093535895,2.64809469,3776.3,3776.2,0.4315]
[1753093536082,2.64820581,3776.2,3775.8,0.8016]
[1753093536282,18.535,3776.1,3775.8,0.8016]
[1753093536678,21.18324614,3776.1,3775.9,0.4315]
[1753093536880,21.18326103,3776.1,3775.9,0.4315]
[1753093537110,0.132,3775.9,3775.8,0.8016]